fUST/lending_fUST_20240929
["ID","MTS","AMOUNT","RATE_DAILY","PERIOD"]
[339470244,1727623832876,-500.0,0.00014976,2]
[339470245,1727623832885,-500.0,0.00014976,2]
[339470246,1727623832895,-419.78491968,0.00014976,2]
[339470247,1727623832905,-500.0,0.00014976,2]
[339470248,1727623832914,-500.0,0.00014976,2]
[339470249,1727623832922,-500.0,0.00014976,2]
[339470250,1727623832932,-500.0,0.00014976,2]
[339470251,1727623832941,-500.0,0.00014976,2]
[339470252,1727623832951,-500.0,0.00014976,2]
[339470253,1727623832959,-500.0,0.00014976,2]
[339470254,1727623832969,-500.0,0.00014976,2]
[339470255,1727623832978,-179.90782272,0.00014976,2]
[339470256,1727623832987,-76.97437905,0.00014977,2]
[339470288,1727623838437,-500.0,0.00014973,2]
[339470291,1727623838447,-42.75619368,0.00014975,2]
[339470485,1727623840283,-294.4205562,0.00014975,2]
[339470498,1727623840399,-162.82325012,0.00014975,2]
[339470500,1727623840408,-500.0,0.00014975,2]
[339470502,1727623840418,-500.0,0.00014975,2]
[339470504,1727623840427,-500.0,0.00014975,2]
[339470506,1727623840436,-403.26743102,0.00014975,2]
[339470509,1727623840446,-500.0,0.00014975,2]
[339470511,1727623840456,-500.0,0.00014975,2]
[339470513,1727623840465,-261.04947146,0.00014975,2]
[339470514,1727623840476,-238.95052854,0.00014975,2]
[339470515,1727623840485,-500.0,0.00014975,2]
[339470516,1727623840495,-500.0,0.00014975,2]
[339470517,1727623840504,-500.0,0.00014975,2]
[339470518,1727623840513,-500.0,0.00014975,2]
[339470519,1727623840522,-500.0,0.00014975,2]
[339470520,1727623840531,-500.0,0.00014975,2]
[339470521,1727623840540,-500.0,0.00014975,2]
[339470522,1727623840550,-500.0,0.00014975,2]
[339470523,1727623840559,-500.0,0.00014975,2]
[339470524,1727623840568,-500.0,0.00014975,2]
[339470525,1727623840577,-500.0,0.00014975,2]
[339470526,1727623840587,-500.0,0.00014975,2]
[339470527,1727623840596,-500.0,0.00014975,2]
[339470528,1727623840605,-500.0,0.00014975,2]
[339470529,1727623840614,-500.0,0.00014975,2]
[339470530,1727623840623,-500.0,0.00014975,2]
[339470531,1727623840633,-500.0,0.00014975,2]
[339470532,1727623840642,-500.0,0.00014975,2]
[339470533,1727623840651,-278.91438547,0.00014975,2]
[339470534,1727623840661,-500.0,0.00014975,2]
[339470536,1727623840670,-500.0,0.00014975,2]
[339470538,1727623840680,-500.0,0.00014975,2]
[339470540,1727623840689,-500.0,0.00014975,2]
[339470542,1727623840698,-500.0,0.00014975,2]
[339470544,1727623840707,-500.0,0.00014975,2]
[339470546,1727623840716,-500.0,0.00014975,2]
[339470548,1727623840725,-500.0,0.00014975,2]
[339470550,1727623840734,-500.0,0.00014975,2]
[339470552,1727623840743,-500.0,0.00014975,2]
[339470554,1727623840753,-153.04684033,0.00014975,2]
[339470556,1727623840763,-151.0,0.00014976,2]
[339470558,1727623840772,-5663.63236801,0.00014977,2]
[339470560,1727623840782,-221.90795195,0.00014977,2]
[339470562,1727623840790,-151.0,0.00014977,2]
[339470564,1727623840799,-151.0,0.00014977,2]
[339470566,1727623840808,-87560.66870442,0.00014977,2]
[339470568,1727623840817,-223175.330728,0.00014977,2]
[339470570,1727623840827,-117535.130878,0.00014977,2]
[339470572,1727623840835,-151.0,0.00014978,2]
[339470574,1727623840845,-151.0,0.00014978,2]
[339470576,1727623840854,-234.461949,0.00014978,2]
[339470578,1727623840862,-151.0,0.0001498,2]
[339470580,1727623840872,-151.0,0.0001498,2]
[339470582,1727623840881,-111587.665364,0.0001498,2]
[339470584,1727623840891,-58767.5654388,0.0001498,2]
[339470586,1727623840900,-35770.41814252,0.00014986,2]
[339470718,1727623846537,-270.2525765,0.00014986,2]
[339470719,1727623900863,209.915444,0.0001398,2]
[339470720,1727623931906,250.0,0.00013975,2]
[339470721,1727623972536,154.0,0.0001201,2]
[339470722,1727623972775,154.0,0.0001401,2]
[339470723,1727623973552,155.0,0.00021,60]
[339470724,1727623973657,154.0,0.0002201,120]
[339470725,1727623986132,6666.0,0.000141,2]
[339470728,1727624108913,183.44715,0.00014045,2]
[339470729,1727624150798,204.459642,0.0001394,2]
[339470730,1727624312923,467.5696111,0.00013803,2]
[339470731,1727624331886,730.7306789,0.00013919,2]
[339470732,1727624348353,3000.0,0.00013808,2]
[339470733,1727624367516,24900.0,0.000138,2]
[339470734,1727624375969,162.0,0.0001198,2]
[339470735,1727624376427,162.0,0.0001397,2]
[339470736,1727624523935,245.846313,0.00013793,2]
[339470737,1727624568448,776.38217191,0.00014,2]
[339470739,1727624600969,9122.69513404,0.00022,120]
[339470740,1727624626697,792.1075755,0.00013766,2]
[339470743,1727624724528,204.459642,0.00013739,2]
[339470744,1727624762563,176.806347,0.00013851,2]
[339470746,1727624835292,565.63806049,0.00021,60]
[339470747,1727624857629,8712.4789824,0.00013827,2]
[339470748,1727624923596,24900.0,0.00013682,2]
[339470798,1727625032503,-2468.31462589,0.00014536,2]
[339470799,1727625032539,-4323.83029615,0.00014536,2]
[339470800,1727625032552,-275.79912234,0.00014536,2]
[339470801,1727625032561,-176.806347,0.00014573,2]
[339470802,1727625032571,-300.0,0.0001463,2]
[339470803,1727625032581,-300.0,0.0001463,2]
[339470804,1727625032590,-2370.57663506,0.0001463,2]
[339470805,1727625032599,-2938.96922138,0.00014631,2]
[339470806,1727625032609,-379.80773619,0.00014633,2]
[339470807,1727625032618,-2938.96922136,0.00014655,2]
[339470808,1727625032628,-2938.96922136,0.00014678,2]
[339470809,1727625032638,-3621.5607088,0.00014698,2]
[339470810,1727625032647,-150.112233,0.000147,2]
[339470811,1727625032658,-150.112233,0.000147,2]
[339470812,1727625032667,-2938.96922136,0.00014702,2]
[339470814,1727625032677,-2938.96922136,0.00014725,2]
[339470816,1727625032687,-1002.62311448,0.00014729,2]
[339470818,1727625032696,-223.47607601,0.00014729,2]
[339470819,1727625032706,-500.0,0.00014729,2]
[339470821,1727625032717,-380.99966459,0.00014729,2]
[339470823,1727625032728,-500.0,0.00014729,2]
[339470825,1727625032739,-500.0,0.00014729,2]
[339470827,1727625032749,-500.0,0.00014729,2]
[339470828,1727625032759,-500.0,0.00014729,2]
[339470830,1727625032769,-500.0,0.00014729,2]
[339470832,1727625032778,-291.23243515,0.00014729,2]
[339470833,1727625032788,-500.0,0.00014729,2]
[339470835,1727625032798,-500.0,0.00014729,2]
[339470837,1727625032807,-500.0,0.0001473,2]
[339470839,1727625032817,-500.0,0.0001473,2]
[339470841,1727625032827,-594.75492186,0.0001473,2]
[339470842,1727625032837,-594.75492186,0.0001473,2]
[339470843,1727625032847,-500.0,0.0001473,2]
[339470844,1727625032856,-530.53754051,0.0001473,2]
[339470845,1727625032867,-594.75492186,0.0001473,2]
[339470846,1727625032877,-500.0,0.0001473,2]
[339470847,1727625032886,-594.75492186,0.0001473,2]
[339470848,1727625032896,-500.0,0.0001473,2]
[339470849,1727625032906,-594.75492186,0.0001473,2]
[339470850,1727625032915,-500.0,0.0001473,2]
[339470851,1727625032924,-594.75492186,0.0001473,2]
[339470852,1727625032933,-500.0,0.0001473,2]
[339470853,1727625032942,-594.75492186,0.0001473,2]
[339470854,1727625032952,-500.0,0.0001473,2]
[339470855,1727625032961,-594.75492186,0.0001473,2]
[339470856,1727625032971,-500.0,0.0001473,2]
[339470857,1727625032981,-594.75492186,0.0001473,2]
[339470858,1727625032990,-500.0,0.0001473,2]
[339470859,1727625032999,-594.75492186,0.0001473,2]
[339470860,1727625033009,-594.75492186,0.0001473,2]
[339470861,1727625033019,-500.0,0.0001473,2]
[339470862,1727625033028,-594.75492186,0.0001473,2]
[339470863,1727625033038,-594.75492186,0.0001473,2]
[339470864,1727625033048,-500.0,0.0001473,2]
[339470865,1727625033057,-594.75492186,0.0001473,2]
[339470866,1727625033067,-500.0,0.0001473,2]
[339470867,1727625033076,-594.75492186,0.0001473,2]
[339470868,1727625033086,-500.0,0.0001473,2]
[339470869,1727625033097,-594.75492186,0.0001473,2]
[339470870,1727625033106,-500.0,0.0001473,2]
[339470871,1727625033116,-594.75492186,0.0001473,2]
[339470872,1727625033127,-500.0,0.0001473,2]
[339470873,1727625033138,-594.75492186,0.0001473,2]
[339470874,1727625033148,-274.97543888,0.0001473,2]
[339471076,1727625040526,-282.37786015,0.00014729,2]
[339471078,1727625040536,-500.0,0.00014729,2]
[339471080,1727625040547,-3204.9174754,0.0001473,2]
[339471082,1727625040558,-13671.03345798,0.00014731,2]
[339471086,1727625040584,-127055.01928602,0.00014731,2]
[339471088,1727625040594,-64867.7261723,0.00014731,2]
[339471090,1727625040604,-2091.3267,0.00014731,2]
[339471092,1727625040613,-2091.3267,0.00014731,2]
[339471116,1727625040851,-1136.28360315,0.00014733,2]
[339471118,1727625040861,-1444.94892189,0.00014736,2]
[339471120,1727625040871,-150.0,0.00014763,2]
[339471123,1727625040883,-2071.28578187,0.00014778,2]
[339471125,1727625040894,-150.112233,0.000148,2]
[339471127,1727625040903,-150.112233,0.000148,2]
[339471129,1727625040914,-150.112233,0.000148,2]
[339471130,1727625040924,-150.112233,0.000148,2]
[339471131,1727625040935,-150.112233,0.000148,2]
[339471132,1727625040946,-150.112233,0.000148,2]
[339471133,1727625040956,-150.112233,0.000148,2]
[339471134,1727625040966,-2091.3267,0.00014816,2]
[339471135,1727625040978,-2091.3267,0.00014816,2]
[339471136,1727625040988,-2091.3267,0.00014816,2]
[339471137,1727625040999,-2091.3267,0.00014816,2]
[339471138,1727625041009,-140726.052744,0.00014816,2]
[339471139,1727625041020,-64867.7261723,0.00014816,2]
[339471140,1727625041031,-140726.052744,0.00014823,2]
[339471141,1727625041041,-64867.7261723,0.00014823,2]
[339471142,1727625041050,-2091.3267,0.00014823,2]
[339471143,1727625041059,-2091.3267,0.00014823,2]
[339471144,1727625041068,-2091.3267,0.00014823,2]
[339471145,1727625041077,-2091.3267,0.00014823,2]
[339471146,1727625041086,-5663.63236801,0.00014825,2]
[339471147,1727625041095,-87560.66870443,0.00014825,2]
[339471148,1727625041105,-140726.052744,0.00014826,2]
[339471149,1727625041114,-129735.452345,0.00014826,2]
[339471150,1727625041124,-151.0,0.00014826,2]
[339471151,1727625041133,-151.0,0.00014826,2]
[339471152,1727625041143,-151.0,0.00014826,2]
[339471154,1727625041152,-151.0,0.00014826,2]
[339471156,1727625041162,-198.89646,0.00014826,2]
[339471158,1727625041171,-198.89646,0.00014826,2]
[339471160,1727625041182,-198.89646,0.00014826,2]
[339471162,1727625041192,-198.89646,0.00014826,2]
[339471164,1727625041201,-585.45622,0.00014826,2]
[339471166,1727625041211,-585.45622,0.00014826,2]
[339471168,1727625041220,-585.45622,0.00014826,2]
[339471170,1727625041231,-585.45622,0.00014826,2]
[339471172,1727625041242,-859.506161,0.00014826,2]
[339471174,1727625041252,-859.506161,0.00014826,2]
[339471177,1727625041264,-859.506161,0.00014826,2]
[339471179,1727625041273,-859.506161,0.00014826,2]
[339471180,1727625041283,-151.0,0.00014826,2]
[339471182,1727625041292,-151.0,0.00014826,2]
[339471184,1727625041302,-151.0,0.00014826,2]
[339471186,1727625041311,-151.0,0.00014826,2]
[339471188,1727625041321,-1420.4518,0.00014826,2]
[339471190,1727625041330,-1420.4518,0.00014826,2]
[339471192,1727625041340,-1420.4518,0.00014826,2]
[339471194,1727625041349,-1420.4518,0.00014826,2]
[339471197,1727625041360,-2005.52704,0.00014826,2]
[339471199,1727625041369,-2005.52704,0.00014826,2]
[339471201,1727625041379,-413.946861,0.00014826,2]
[339471203,1727625041389,-413.946861,0.00014826,2]
[339471205,1727625041398,-2005.52704,0.00014826,2]
[339471206,1727625041407,-2005.52704,0.00014826,2]
[339471208,1727625041417,-413.946861,0.00014826,2]
[339471210,1727625041426,-413.946861,0.00014826,2]
[339471212,1727625041436,-2091.3267,0.00014826,2]
[339471214,1727625041445,-2091.3267,0.00014826,2]
[339471216,1727625041455,-2091.3267,0.00014826,2]
[339471219,1727625041468,-2091.3267,0.00014826,2]
[339471221,1727625041479,-2091.3267,0.00014826,2]
[339471223,1727625041490,-2091.3267,0.00014826,2]
[339471225,1727625041500,-151.0,0.00014826,2]
[339471227,1727625041513,-151.0,0.00014826,2]
[339471230,1727625041524,-64867.7261723,0.00014826,2]
[339471232,1727625041536,-3264.54351685,0.0001483,2]
[339471234,1727625041546,-151.0,0.00014833,2]
[339471236,1727625041556,-151.0,0.00014833,2]
[339471238,1727625041565,-330.023077,0.00014833,2]
[339471240,1727625041575,-330.023077,0.00014833,2]
[339471242,1727625041584,-711.901324,0.00014833,2]
[339471244,1727625041594,-711.901324,0.00014833,2]
[339471246,1727625041603,-4325.999826,0.00014833,2]
[339471248,1727625041612,-4325.999826,0.00014833,2]
[339471250,1727625041621,-1364.273635,0.00014833,2]
[339471252,1727625041631,-1364.273635,0.00014833,2]
[339471254,1727625041640,-153.308977,0.00014836,2]
[339471256,1727625041650,-2000.0,0.00014836,2]
[339471258,1727625041659,-2000.0,0.00014836,2]
[339471260,1727625041669,-2022.48948,0.00014836,2]
[339471262,1727625041678,-155.893003,0.00014836,2]
[339471264,1727625041688,-330.023077,0.00014836,2]
[339471266,1727625041698,-330.023077,0.00014836,2]
[339471268,1727625041708,-330.023077,0.00014836,2]
[339471270,1727625041718,-330.023077,0.00014836,2]
[339471272,1727625041729,-711.901324,0.00014836,2]
[339471274,1727625041739,-711.901324,0.00014836,2]
[339471277,1727625041751,-711.901324,0.00014836,2]
[339471279,1727625041760,-711.901324,0.00014836,2]
[339471281,1727625041770,-151.0,0.00014836,2]
[339471283,1727625041780,-151.0,0.00014836,2]
[339471285,1727625041790,-4325.999826,0.00014836,2]
[339471287,1727625041803,-4325.999826,0.00014836,2]
[339471289,1727625041813,-4325.999826,0.00014836,2]
[339471291,1727625041824,-4325.999826,0.00014836,2]
[339471293,1727625041834,-151.0,0.00014836,2]
[339471295,1727625041845,-151.0,0.00014836,2]
[339471297,1727625041855,-198.89646,0.00014836,2]
[339471299,1727625041864,-198.89646,0.00014836,2]
[339471302,1727625041875,-198.89646,0.00014836,2]
[339471304,1727625041885,-198.89646,0.00014836,2]
[339471306,1727625041896,-198.89646,0.00014836,2]
[339471308,1727625041906,-198.89646,0.00014836,2]
[339471310,1727625041915,-585.45622,0.00014836,2]
[339471312,1727625041926,-585.45622,0.00014836,2]
[339471314,1727625041936,-1364.273635,0.00014836,2]
[339471316,1727625041948,-1364.273635,0.00014836,2]
[339471318,1727625041958,-585.45622,0.00014836,2]
[339471320,1727625041968,-585.45622,0.00014836,2]
[339471323,1727625041978,-1364.273635,0.00014836,2]
[339471325,1727625041989,-1364.273635,0.00014836,2]
[339471327,1727625041999,-859.506161,0.00014836,2]
[339471329,1727625042009,-859.506161,0.00014836,2]
[339471331,1727625042020,-859.506161,0.00014836,2]
[339471333,1727625042031,-859.506161,0.00014836,2]
[339471335,1727625042041,-859.506161,0.00014836,2]
[339471337,1727625042051,-859.506161,0.00014836,2]
[339471339,1727625042062,-151.0,0.00014836,2]
[339471341,1727625042071,-151.0,0.00014836,2]
[339471343,1727625042080,-151.0,0.00014836,2]
[339471345,1727625042090,-151.0,0.00014836,2]
[339471347,1727625042099,-151.0,0.00014836,2]
[339471349,1727625042108,-151.0,0.00014836,2]
[339471351,1727625042117,-1420.4518,0.00014836,2]
[339471354,1727625042127,-1420.4518,0.00014836,2]
[339471355,1727625042136,-1420.4518,0.00014836,2]
[339471358,1727625042147,-1420.4518,0.00014836,2]
[339471360,1727625042158,-1420.4518,0.00014836,2]
[339471362,1727625042167,-1420.4518,0.00014836,2]
[339471364,1727625042177,-2005.52704,0.00014836,2]
[339471366,1727625042186,-2005.52704,0.00014836,2]
[339471368,1727625042195,-413.946861,0.00014836,2]
[339471370,1727625042204,-413.946861,0.00014836,2]
[339471372,1727625042214,-2005.52704,0.00014836,2]
[339471374,1727625042224,-2005.52704,0.00014836,2]
[339471376,1727625042233,-413.946861,0.00014836,2]
[339471378,1727625042243,-413.946861,0.00014836,2]
[339471380,1727625042253,-2091.3267,0.00014836,2]
[339471382,1727625042262,-2091.3267,0.00014836,2]
[339471384,1727625042271,-154.798489,0.00014836,2]
[339471386,1727625042280,-167911.70337474,0.00014846,2]
[339471387,1727625042289,-151.0,0.00014846,2]
[339471389,1727625042298,-330.023077,0.00014846,2]
[339471391,1727625042308,-330.023077,0.00014846,2]
[339471393,1727625042317,-330.023077,0.00014846,2]
[339471395,1727625042327,-330.023077,0.00014846,2]
[339471397,1727625042336,-711.901324,0.00014846,2]
[339471399,1727625042347,-711.901324,0.00014846,2]
[339471401,1727625042358,-711.901324,0.00014846,2]
[339471403,1727625042369,-711.901324,0.00014846,2]
[339471405,1727625042378,-151.0,0.00014846,2]
[339471407,1727625042387,-151.0,0.00014846,2]
[339471409,1727625042396,-4325.999826,0.00014846,2]
[339471411,1727625042405,-4325.999826,0.00014846,2]
[339471414,1727625042417,-4325.999826,0.00014846,2]
[339471416,1727625042428,-4325.999826,0.00014846,2]
[339471417,1727625042458,-151.0,0.00014846,2]
[339471420,1727625042470,-151.0,0.00014846,2]
[339471422,1727625042484,-198.89646,0.00014846,2]
[339471424,1727625042496,-198.89646,0.00014846,2]
[339471426,1727625042507,-585.45622,0.00014846,2]
[339471428,1727625042518,-517.01787083,0.00014846,2]
[339471431,1727625042534,-68.43834917,0.00014846,2]
[339471433,1727625042545,-1131.66846523,0.00014846,2]
[339471541,1727625043570,-232.60516977,0.00014846,2]
[339471542,1727625043580,-210.57907353,0.00014846,2]
[339471548,1727625043628,-459.37065262,0.00014846,2]
[339471554,1727625043698,-158.97685584,0.00014846,2]
[339471798,1727625046550,-500.0,0.00014729,2]
[339471800,1727625046565,-500.0,0.00014729,2]
[339471802,1727625046576,-500.0,0.00014729,2]
[339471804,1727625046588,-300.0,0.00014729,2]
[339471806,1727625046599,-500.0,0.00014729,2]
[339471809,1727625046608,-500.0,0.00014729,2]
[339471812,1727625046617,-535.34705301,0.00014846,2]
[339471814,1727625046627,-585.45622,0.00014846,2]
[339471816,1727625046637,-585.45622,0.00014846,2]
[339471818,1727625046646,-1364.273635,0.00014846,2]
[339471821,1727625046656,-1364.273635,0.00014846,2]
[339471824,1727625046664,-859.506161,0.00014846,2]
[339471827,1727625046674,-859.506161,0.00014846,2]
[339471829,1727625046683,-151.0,0.00014846,2]
[339471832,1727625046697,-157.978233,0.00014846,2]
[339471834,1727625046706,-1420.4518,0.00014846,2]
[339471836,1727625046716,-1420.4518,0.00014846,2]
[339471838,1727625046725,-2005.52704,0.00014846,2]
[339471840,1727625046735,-2005.52704,0.00014846,2]
[339471842,1727625046745,-413.946861,0.00014846,2]
[339471845,1727625046755,-413.946861,0.00014846,2]
[339471847,1727625046765,-2005.52704,0.00014846,2]
[339471849,1727625046774,-2005.52704,0.00014846,2]
[339471851,1727625046784,-413.946861,0.00014846,2]
[339471853,1727625046793,-413.946861,0.00014846,2]
[339471855,1727625046802,-2091.3267,0.00014846,2]
[339471857,1727625046811,-2091.32669513,0.00014846,2]
[339471859,1727625046820,-500.0,0.00014873,2]
[339471861,1727625046830,-500.0,0.00014873,2]
[339471863,1727625046839,-500.0,0.00014873,2]
[339471865,1727625046851,-500.0,0.00014873,2]
[339471867,1727625046861,-500.0,0.00014873,2]
[339471869,1727625046872,-500.0,0.00014873,2]
[339471871,1727625046883,-500.0,0.00014873,2]
[339471874,1727625046893,-501.76181992,0.00014873,2]
[339471876,1727625046904,-265.49259747,0.00014873,2]
[339471878,1727625046913,-466.73946567,0.00014873,2]
[339471880,1727625046922,-548.83407114,0.00014873,2]
[339471882,1727625046932,-500.0,0.00014873,2]
[339471884,1727625046942,-500.0,0.00014873,2]
[339471886,1727625046952,-500.0,0.00014873,2]
[339471888,1727625046961,-307.57718772,0.00014873,2]
[339471890,1727625046970,-500.0,0.00014873,2]
[339471892,1727625046981,-500.0,0.00014873,2]
[339471894,1727625046990,-573.73162072,0.00014873,2]
[339471896,1727625047001,-599.80993148,0.00014873,2]
[339471899,1727625047014,-150.112233,0.000149,2]
[339471901,1727625047024,-278.573428,0.000149,2]
[339471903,1727625047035,-150.112234,0.000149,2]
[339471905,1727625047046,-330.023077,0.00014955,2]
[339471907,1727625047057,-330.023077,0.00014955,2]
[339471909,1727625047067,-711.901324,0.00014955,2]
[339471911,1727625047076,-711.901324,0.00014955,2]
[339471913,1727625047086,-151.0,0.00014955,2]
[339471916,1727625047099,-4325.999826,0.00014955,2]
[339471918,1727625047110,-4325.999826,0.00014955,2]
[339471920,1727625047121,-151.0,0.00014955,2]
[339471922,1727625047131,-198.89646,0.00014955,2]
[339471924,1727625047142,-198.89646,0.00014955,2]
[339471926,1727625047152,-585.45622,0.00014955,2]
[339471929,1727625047161,-1364.273635,0.00014955,2]
[339471931,1727625047170,-585.45622,0.00014955,2]
[339471933,1727625047181,-1364.273635,0.00014955,2]
[339471935,1727625047190,-859.506161,0.00014955,2]
[339471937,1727625047199,-859.506161,0.00014955,2]
[339471939,1727625047208,-151.0,0.00014955,2]
[339471941,1727625047218,-1420.4518,0.00014955,2]
[339471943,1727625047227,-1420.4518,0.00014955,2]
[339471945,1727625047236,-2005.52704,0.00014955,2]
[339471947,1727625047246,-413.946861,0.00014955,2]
[339471949,1727625047255,-2005.52704,0.00014955,2]
[339471951,1727625047264,-413.946861,0.00014955,2]
[339471953,1727625047274,-330.023077,0.00014956,2]
[339471955,1727625047283,-330.023077,0.00014956,2]
[339471957,1727625047292,-711.901324,0.00014956,2]
[339471959,1727625047301,-711.901324,0.00014956,2]
[339471961,1727625047311,-151.0,0.00014956,2]
[339471963,1727625047321,-4325.999826,0.00014956,2]
[339471965,1727625047332,-4325.999826,0.00014956,2]
[339471967,1727625047342,-151.0,0.00014956,2]
[339471970,1727625047354,-198.89646,0.00014956,2]
[339471972,1727625047364,-198.89646,0.00014956,2]
[339471974,1727625047373,-585.45622,0.00014956,2]
[339471976,1727625047382,-1364.273635,0.00014956,2]
[339471978,1727625047391,-585.45622,0.00014956,2]
[339471980,1727625047400,-1364.273635,0.00014956,2]
[339471982,1727625047409,-859.506161,0.00014956,2]
[339471983,1727625047418,-859.506161,0.00014956,2]
[339471986,1727625047430,-151.0,0.00014956,2]
[339471988,1727625047439,-1420.4518,0.00014956,2]
[339471990,1727625047451,-1420.4518,0.00014956,2]
[339471992,1727625047462,-2005.52704,0.00014956,2]
[339471994,1727625047474,-413.946861,0.00014956,2]
[339471996,1727625047484,-2005.52704,0.00014956,2]
[339471998,1727625047495,-413.946861,0.00014956,2]
[339472000,1727625047505,-330.023077,0.00014957,2]
[339472002,1727625047515,-330.023077,0.00014957,2]
[339472005,1727625047524,-711.901324,0.00014957,2]
[339472007,1727625047534,-711.901324,0.00014957,2]
[339472009,1727625047543,-159.507751,0.00014957,2]
[339472011,1727625047552,-4325.999826,0.00014957,2]
[339472013,1727625047562,-4325.999826,0.00014957,2]
[339472015,1727625047571,-151.0,0.00014957,2]
[339472017,1727625047581,-198.89646,0.00014957,2]
[339472019,1727625047591,-198.89646,0.00014957,2]
[339472021,1727625047602,-585.45622,0.00014957,2]
[339472023,1727625047612,-1364.273635,0.00014957,2]
[339472025,1727625047621,-585.45622,0.00014957,2]
[339472027,1727625047630,-1364.273635,0.00014957,2]
[339472029,1727625047639,-859.506161,0.00014957,2]
[339472031,1727625047648,-859.506161,0.00014957,2]
[339472033,1727625047656,-151.0,0.00014957,2]
[339472035,1727625047666,-1420.4518,0.00014957,2]
[339472037,1727625047677,-1420.4518,0.00014957,2]
[339472039,1727625047687,-2005.52704,0.00014957,2]
[339472041,1727625047697,-413.946861,0.00014957,2]
[339472043,1727625047706,-2005.52704,0.00014957,2]
[339472045,1727625047716,-413.946861,0.00014957,2]
[339472047,1727625047726,-151.0,0.00014965,2]
[339472049,1727625047736,-151.0,0.00014965,2]
[339472051,1727625047746,-205.05309,0.00014965,2]
[339472053,1727625047755,-205.05309,0.00014965,2]
[339472055,1727625047765,-151.0,0.00014965,2]
[339472057,1727625047774,-151.0,0.00014965,2]
[339472059,1727625047784,-151.0,0.00014965,2]
[339472061,1727625047793,-151.0,0.00014965,2]
[339472063,1727625047803,-205.05309,0.00014965,2]
[339472065,1727625047812,-205.05309,0.00014965,2]
[339472067,1727625047822,-151.0,0.00014965,2]
[339472069,1727625047831,-151.0,0.00014965,2]
[339472071,1727625047840,-1083.694645,0.00014965,2]
[339472073,1727625047850,-1083.694645,0.00014965,2]
[339472075,1727625047860,-1083.694645,0.00014965,2]
[339472077,1727625047869,-252.367461,0.00014965,2]
[339472079,1727625047878,-1083.694645,0.00014965,2]
[339472081,1727625047887,-252.367461,0.00014965,2]
[339472083,1727625047897,-252.367461,0.00014965,2]
[339472085,1727625047907,-252.367461,0.00014965,2]
[339472087,1727625047915,-151.0,0.00014965,2]
[339472089,1727625047925,-151.0,0.00014965,2]
[339472091,1727625047934,-151.0,0.00014965,2]
[339472093,1727625047944,-151.0,0.00014965,2]
[339472095,1727625047953,-348.15879,0.00014965,2]
[339472097,1727625047963,-348.15879,0.00014965,2]
[339472099,1727625047972,-348.15879,0.00014965,2]
[339472101,1727625047982,-348.15879,0.00014965,2]
[339472103,1727625047991,-261.754001,0.00014965,2]
[339472105,1727625048001,-151.0,0.00014965,2]
[339472107,1727625048010,-151.0,0.00014965,2]
[339472109,1727625048019,-2903.316364,0.00014965,2]
[339472111,1727625048030,-2903.316364,0.00014965,2]
[339472113,1727625048039,-2903.316364,0.00014965,2]
[339472115,1727625048048,-2903.316364,0.00014965,2]
[339472117,1727625048058,-8636.834612,0.00014965,2]
[339472119,1727625048067,-8636.834612,0.00014965,2]
[339472121,1727625048077,-8636.834612,0.00014965,2]
[339472123,1727625048086,-8636.834612,0.00014965,2]
[339472125,1727625048096,-209.354358,0.00014965,2]
[339472127,1727625048106,-209.354358,0.00014965,2]
[339472129,1727625048116,-209.354358,0.00014965,2]
[339472132,1727625048126,-209.354358,0.00014965,2]